fUSD/lending_fUSD_20250407
["ID","MTS","AMOUNT","RATE_DAILY","PERIOD"]
[357422993,1744063843721,-167.05,0.00024724,2]
[357422994,1744063843730,-724.89510822,0.000248,2]
[357422995,1744063843739,-27780.8042395,0.000248,2]
[357422996,1744063843749,-13890.4021197,0.0002487,2]
[357422997,1744063843759,-150.0,0.00024889,2]
[357422998,1744063843768,-163.0,0.00024904,2]
[357422999,1744063843778,-225.42516596,0.00025,2]
[357423000,1744063843788,-400.0,0.00025,2]
[357423001,1744063843797,-167.05,0.00025704,2]
[357423002,1744063843807,-150.0,0.00026259,2]
[357423003,1744063843816,-164.15243552,0.00026319,2]
[357423005,1744063843826,-1000.0,0.00026452,2]
[357423006,1744063843835,-1000.0,0.00026541,2]
[357423008,1744063843844,-2569.75140714,0.00026679,2]
[357423010,1744063843854,-167.05,0.00026684,2]
[357423012,1744063843863,-318.0,0.00026749,2]
[357423014,1744063843873,-156.95,0.00026849,2]
[357423016,1744063843883,-341.82,0.00026849,2]
[357423018,1744063843892,-151.55,0.00026849,2]
[357423020,1744063843901,-450.0,0.00027,2]
[357423022,1744063843910,-172.0,0.00027,2]
[357423024,1744063843921,-1379.26,0.00027397,2]
[357423026,1744063843931,-420.0,0.000274,2]
[357423028,1744063843940,-150.0,0.00027629,2]
[357423030,1744063843950,-167.05,0.00027664,2]
[357423031,1744063843959,-172.0,0.00027671,2]
[357423032,1744063843968,-13890.4021197,0.00027855,2]
[357423033,1744063843977,-3045.0,0.00028144,5]
[357423034,1744063843987,-170.78,0.00028144,2]
[357423035,1744063843996,-170.78,0.00028285,2]
[357423036,1744063844006,-172.0,0.00028767,2]
[357423037,1744063844016,-1379.26,0.00028767,2]
[357423038,1744063844026,-150.0,0.00028999,2]
[357423039,1744063844036,-500.0,0.00029,2]
[357423040,1744063844045,-2569.75140714,0.00029194,2]
[357423041,1744063844055,-1000.0,0.00029195,2]
[357423042,1744063844065,-590.40298452,0.000299,2]
[357423043,1744063844076,-500.0,0.00029973,5]
[357423044,1744063844086,-500.0,0.00029973,5]
[357423045,1744063844095,-151.27,0.0002998,2]
[357423046,1744063844104,-69452.0105986,0.0002999,2]
[357423047,1744063844113,-1086.95971035,0.00029999,15]
[357423048,1744063844123,-151.0,0.00029999,2]
[357423049,1744063844133,-22469.35094427,0.0003,2]
[357423050,1744063844143,-513.16614987,0.0003,2]
[357423051,1744063844152,-112960.95035355,0.0003,2]
[357423052,1744063844161,-291.12582019,0.0003,2]
[357423053,1744063844170,-1230.85412069,0.0003,10]
[357423054,1744063844180,-1746.37951282,0.0003,2]
[357423055,1744063844189,-1542.09991634,0.0003,2]
[357423056,1744063844199,-13890.4021197,0.00030127,2]
[357423057,1744063844213,-1379.26,0.00030137,2]
[357423058,1744063844229,-175.0,0.00030205,2]
[357423060,1744063844238,-150.0,0.00030369,2]
[357423062,1744063844248,-1939.1,0.00030483,2]
[357423064,1744063844257,-500.0,0.00030723,5]
[357423066,1744063844267,-164.15243552,0.00030964,2]
[357423068,1744063844277,-550.0,0.00031,2]
[357423070,1744063844287,-1379.26,0.00031507,2]
[357423072,1744063844296,-2569.75140714,0.00031709,2]
[357423074,1744063844305,-150.0,0.00031739,2]
[357423076,1744063844314,-1000.0,0.0003185,2]
[357423078,1744063844323,-852.0,0.00032062,2]
[357423080,1744063844332,-3956.0,0.00032062,2]
[357423081,1744063844343,-248.179,0.00032062,2]
[357423083,1744063844352,-171.649,0.00032062,2]
[357423085,1744063844361,-341.82,0.00032646,2]
[357423087,1744063844370,-13890.4021197,0.0003279,2]
[357423089,1744063844380,-6762.22499095,0.0003279,2]
[357423091,1744063844390,-4640.41743736,0.000328,2]
[357423093,1744063844399,-590.40298452,0.00032865,6]
[357423095,1744063844408,-1379.26,0.00032877,2]
[357423097,1744063844417,-419.27688042,0.000329,2]
[357423099,1744063844426,-400.0,0.000329,12]
[357423101,1744063844435,-13890.4021197,0.0003299,2]
[357423103,1744063844444,-13524.4499819,0.0003299,2]
[357423105,1744063844454,-25056.26237881,0.00033,2]
[357423107,1744063844463,-600.0,0.00033,2]
[357423109,1744063844473,-215.93498723,0.000331,2]
[357423111,1744063844482,-150.0,0.00033109,2]
[357423113,1744063844492,-200.0,0.00033151,2]
[357423115,1744063844501,-6762.22499095,0.00033494,2]
[357423117,1744063844510,-1165.57095062,0.000335,2]
[357423119,1744063844519,-3991.70386852,0.00034,2]
[357423122,1744063844529,-13890.4021197,0.0003409,2]
[357423123,1744063844538,-6762.22499095,0.0003409,2]
[357423126,1744063844548,-1292.0,0.000341,7]
[357423127,1744063844557,-1000.0,0.000341,7]
[357423129,1744063844567,-1000.0,0.000341,7]
[357423131,1744063844576,-1247.0,0.000341,7]
[357423133,1744063844586,-1000.0,0.000341,7]
[357423135,1744063844595,-1000.0,0.000341,7]
[357423137,1744063844604,-1000.0,0.000342,7]
[357423139,1744063844614,-2569.75140714,0.00034223,2]
[357423141,1744063844624,-1936.0,0.000344,7]
[357423143,1744063844633,-13890.4021197,0.00034407,2]
[357423145,1744063844644,-13524.4499819,0.00034407,2]
[357423147,1744063844654,-150.0,0.00034417,2]
[357423149,1744063844664,-150.0,0.00034417,2]
[357423151,1744063844673,-150.0,0.00034417,2]
[357423153,1744063844683,-150.0,0.00034417,2]
[357423155,1744063844692,-284.112,0.00034417,2]
[357423157,1744063844703,-150.0,0.00034417,2]
[357423159,1744063844712,-150.0,0.00034417,2]
[357423161,1744063844721,-241.931,0.00034417,2]
[357423163,1744063844731,-181.611,0.00034417,2]
[357423165,1744063844741,-171.893,0.00034417,2]
[357423167,1744063844750,-256.974,0.00034417,2]
[357423169,1744063844760,-574.385,0.00034417,2]
[357423171,1744063844770,-1285.0,0.00034417,2]
[357423173,1744063844780,-2043.0,0.00034417,2]
[357423175,1744063844790,-1325.0,0.00034417,2]
[357423177,1744063844799,-790.0,0.00034417,2]
[357423179,1744063844809,-908.0,0.00034417,2]
[357423181,1744063844818,-1457.902,0.00034417,2]
[357423183,1744063844827,-1288.869,0.00034417,2]
[357423185,1744063844836,-544.0,0.00034417,2]
[357423187,1744063844847,-4140.0,0.00034417,2]
[357423189,1744063844856,-150.0,0.00034478,2]
[357423191,1744063844865,-172.0,0.00034521,2]
[357423193,1744063844875,-150.0,0.00034548,10]
[357423195,1744063844884,-223.0,0.0003478,2]
[357423197,1744063844894,-3450.19188876,0.000348,2]
[357423199,1744063844904,-151.27,0.0003487,2]
[357423201,1744063844914,-13890.4021197,0.0003488,2]
[357423203,1744063844923,-13524.4499819,0.0003488,2]
[357423205,1744063844934,-26930.50293436,0.0003489,14]
[357423207,1744063844943,-151.0,0.0003489,7]
[357423209,1744063844953,-151.0,0.0003489,7]
[357423211,1744063844962,-151.0,0.0003489,7]
[357423212,1744063844972,-6762.22499095,0.00034909,2]
[357423214,1744063844982,-2265.5327431,0.00034919,4]
[357423215,1744063844991,-6011.36906372,0.00035,2]
[357423217,1744063845001,-226.98478768,0.00035,2]
[357423219,1744063845010,-151.0,0.00035,7]
[357423221,1744063845020,-150.0,0.00035,2]
[357423223,1744063845029,-650.0,0.00035,2]
[357423225,1744063845039,-157.67,0.00035,2]
[357423226,1744063845048,-852.0,0.00035062,2]
[357423228,1744063845058,-3956.0,0.00035062,2]
[357423230,1744063845067,-151.0,0.00035062,2]
[357423232,1744063845078,-151.0,0.00035062,2]
[357423234,1744063845088,-601.29,0.00035068,2]
[357423236,1744063845098,-151.0,0.0003511,7]
[357423238,1744063845108,-151.0,0.0003511,7]
[357423240,1744063845117,-151.0,0.0003511,7]
[357423242,1744063845126,-151.0,0.0003511,7]
[357423244,1744063845135,-152.309214,0.0003511,7]
[357423246,1744063845145,-314.865048,0.0003511,7]
[357423248,1744063845155,-1000.0,0.00035452,5]
[357423250,1744063845164,-164.15243552,0.0003561,2]
[357423251,1744063845173,-13890.4021197,0.00035649,2]
[357423253,1744063845183,-6762.22499095,0.00035649,2]
[357423255,1744063845192,-2000.0,0.00035752,4]
[357423257,1744063845201,-164.93227788,0.0003582,2]
[357423259,1744063845215,-303.85665411,0.0003583,8]
[357423261,1744063845224,-590.40298452,0.0003583,10]
[357423263,1744063845233,-150.0,0.00035848,2]
[357423265,1744063845242,-6762.22499095,0.0003589,2]
[357423267,1744063845252,-900.0,0.000359,13]
[357423269,1744063845262,-41671.2063592,0.0003592,2]
[357423271,1744063845271,-33811.1249547,0.0003592,2]
[357423273,1744063845281,-49504.17820298,0.0003593,7]
[357423275,1744063845292,-24865.06462282,0.0003593,2]
[357423276,1744063845302,-6762.22499095,0.0003598,2]
[357423278,1744063845311,-151.27,0.0003598,2]
[357423280,1744063845322,-151.0,0.0003599,7]
[357423282,1744063845331,-151.0,0.0003599,7]
[357423284,1744063845340,-151.0,0.0003599,7]
[357423286,1744063845350,-6536.999462,0.0003599,7]
[357423288,1744063845359,-151.642715,0.0003599,7]
[357423290,1744063845369,-6536.999462,0.0003599,7]
[357423293,1744063845379,-762.680663,0.0003599,7]
[357423295,1744063845389,-762.680663,0.0003599,7]
[357423297,1744063845398,-151.0,0.0003599,7]
[357423299,1744063845411,-1393.595376,0.0003599,7]
[357423301,1744063845425,-1393.595376,0.0003599,7]
[357423303,1744063845440,-795.151633,0.0003599,7]
[357423305,1744063845449,-795.151633,0.0003599,7]
[357423307,1744063845459,-69452.0105986,0.0003599,2]
[357423310,1744063845468,-128482.274828,0.0003599,2]
[357423313,1744063845477,-151.0,0.0003599,7]
[357423315,1744063845487,-151.0,0.0003599,7]
[357423317,1744063845496,-151.27,0.0003599,2]
[357423321,1744063845506,-345001.14818108,0.00036,2]
[357423323,1744063845516,-151.0,0.00036,7]
[357423325,1744063845525,-151.0,0.00036,7]
[357423327,1744063845535,-151.0,0.00036,7]
[357423329,1744063845545,-151.322969,0.00036,7]
[357423331,1744063845555,-314.865048,0.00036,7]
[357423333,1744063845564,-151.0,0.00036,7]
[357423335,1744063845573,-151.0,0.00036,7]
[357423337,1744063845583,-151.0,0.00036,7]
[357423338,1744063845592,-151.0,0.00036,7]
[357423340,1744063845605,-151.0,0.00036,7]
[357423342,1744063845620,-10462.02514405,0.00036,2]
[357423344,1744063845630,-643.14038601,0.00036,2]
[357423346,1744063845641,-300.0,0.00036,2]
[357423348,1744063845651,-151.0,0.00036,7]
[357423350,1744063845661,-204.5192,0.00036,7]
[357423352,1744063845670,-204.5192,0.00036,7]
[357423353,1744063845679,-151.0,0.00036,7]
[357423355,1744063845689,-151.0,0.00036,7]
[357423357,1744063845698,-151.0,0.00036,7]
[357423359,1744063845708,-151.0,0.00036,7]
[357423361,1744063845719,-243.741296,0.00036,7]
[357423363,1744063845729,-151.0,0.00036,7]
[357423365,1744063845738,-151.0,0.00036,7]
[357423367,1744063845748,-151.0,0.00036,7]
[357423369,1744063845759,-445.127338,0.00036,7]
[357423371,1744063845769,-445.127338,0.00036,7]
[357423373,1744063845778,-151.0,0.00036,7]
[357423375,1744063845788,-151.0,0.00036,7]
[357423377,1744063845797,-151.0,0.00036,7]
[357423379,1744063845807,-151.0,0.00036,7]
[357423381,1744063845816,-151.0,0.00036,7]
[357423382,1744063845825,-151.0,0.00036,7]
[357423384,1744063845835,-151.0,0.00036,7]
[357423386,1744063845844,-154.597576,0.00036,7]
[357423388,1744063845854,-151.0,0.00036,7]
[357423390,1744063845864,-155.997886,0.00036,7]
[357423392,1744063845874,-151.0,0.00036,7]
[357423394,1744063845883,-151.0,0.00036,7]
[357423396,1744063845892,-151.0,0.00036,7]
[357423398,1744063845902,-151.0,0.00036,7]
[357423400,1744063845911,-151.0,0.00036,7]
[357423402,1744063845920,-447.481459,0.00036,7]
[357423404,1744063845929,-447.481459,0.00036,7]
[357423406,1744063845939,-151.0,0.00036,7]
[357423408,1744063845948,-151.0,0.00036,7]
[357423410,1744063845957,-151.0,0.00036,7]
[357423411,1744063845966,-156.229089,0.00036,7]
[357423413,1744063845976,-151.0,0.00036,7]
[357423415,1744063845985,-151.0,0.00036,7]
[357423417,1744063845994,-151.0,0.00036,7]
[357423419,1744063846005,-210.871432,0.00036,7]
[357423421,1744063846014,-151.0,0.00036,7]
[357423423,1744063846024,-151.0,0.00036,7]
[357423425,1744063846032,-151.0,0.00036,7]
[357423427,1744063846042,-151.0,0.00036,7]
[357423429,1744063846051,-151.0,0.00036,7]
[357423431,1744063846061,-151.0,0.00036,7]
[357423433,1744063846070,-151.0,0.00036,7]
[357423435,1744063846079,-199.640908,0.00036,7]
[357423436,1744063846089,-474.194282,0.00036,7]
[357423438,1744063846098,-474.194282,0.00036,7]
[357423440,1744063846107,-151.0,0.00036,7]
[357423442,1744063846116,-151.0,0.00036,7]
[357423444,1744063846126,-243.622201,0.00036,7]
[357423446,1744063846136,-243.622201,0.00036,7]
[357423448,1744063846145,-151.0,0.00036,7]
[357423450,1744063846155,-151.0,0.00036,7]
[357423452,1744063846164,-210.148727,0.00036,7]
[357423454,1744063846174,-151.0,0.00036,7]
[357423456,1744063846183,-176.880242,0.00036,7]
[357423458,1744063846192,-210.148727,0.00036,7]
[357423460,1744063846201,-176.880242,0.00036,7]
[357423462,1744063846215,-971.303313,0.00036,7]
[357423464,1744063846224,-971.303313,0.00036,7]
[357423465,1744063846233,-151.0,0.00036,7]
[357423467,1744063846244,-3561.872981,0.00036,7]
[357423470,1744063846254,-3561.872981,0.00036,7]
[357423471,1744063846264,-151.0,0.00036,7]
[357423473,1744063846274,-440.549335,0.00036,7]
[357423475,1744063846285,-440.549335,0.00036,7]
[357423477,1744063846295,-151.0,0.00036,7]
[357423479,1744063846304,-151.0,0.00036,7]
[357423481,1744063846313,-151.0,0.00036,7]
[357423483,1744063846323,-151.0,0.00036,7]
[357423485,1744063846332,-151.0,0.00036,7]
[357423487,1744063846341,-6536.999462,0.00036,7]
[357423489,1744063846350,-151.0,0.00036,7]
[357423491,1744063846359,-6536.999462,0.00036,7]
[357423493,1744063846369,-151.0,0.00036,7]
[357423495,1744063846379,-151.0,0.00036,7]
[357423497,1744063846388,-151.0,0.00036,7]
[357423499,1744063846397,-280.997358,0.00036,7]
[357423501,1744063846407,-1748.001158,0.00036,7]
[357423503,1744063846416,-1748.001158,0.00036,7]
[357423505,1744063846425,-762.680663,0.00036,7]
[357423507,1744063846435,-762.680663,0.00036,7]
[357423509,1744063846444,-151.0,0.00036,7]
[357423510,1744063846453,-230.561199,0.00036,7]
[357423512,1744063846462,-230.561199,0.00036,7]
[357423514,1744063846473,-1393.595376,0.00036,7]
[357423516,1744063846482,-1393.595376,0.00036,7]
[357423518,1744063846492,-151.0,0.00036,7]
[357423520,1744063846502,-403.159347,0.00036,7]
[357423522,1744063846511,-795.151633,0.00036,7]
[357423524,1744063846520,-403.159347,0.00036,7]
[357423526,1744063846530,-795.151633,0.00036,7]
[357423528,1744063846539,-151.0,0.00036,7]
[357423530,1744063846549,-151.0,0.00036,7]
[357423532,1744063846558,-178.907013,0.00036,7]
[357423534,1744063846567,-178.907013,0.00036,7]
[357423536,1744063846577,-151.0,0.00036,7]
[357423538,1744063846587,-240.681549,0.00036,7]
[357423540,1744063846596,-151.0,0.00036,7]
[357423542,1744063846606,-259.898392,0.00036,7]
[357423544,1744063846615,-151.0,0.00036,7]
[357423546,1744063846625,-259.898392,0.00036,7]
[357423548,1744063846635,-151.0,0.00036,7]
[357423550,1744063846645,-1000.0,0.00036059,2]
[357423552,1744063846654,-841.81940204,0.00036203,5]
[357423578,1744063846908,-2000.0,0.00036227,5]
[357423581,1744063846918,-172.0,0.00036247,2]
[357423582,1744063846927,-1500.0,0.00036471,5]
[357423584,1744063846937,-2569.75140714,0.00036738,2]
[357423586,1744063846946,-156.95,0.00036862,2]
[357423588,1744063846955,-151.55,0.00036862,2]
[357423590,1744063846965,-1400.0,0.000369,13]
[357423592,1744063846974,-152379.99101694,0.00037,2]
[357423594,1744063846984,-700.0,0.00037,2]
[357423596,1744063846993,-150.0,0.00037218,2]
[357423598,1744063847003,-150.0,0.00037417,2]
[357423600,1744063847013,-150.0,0.00037417,2]
[357423602,1744063847022,-150.0,0.00037417,2]
[357423604,1744063847032,-150.0,0.00037417,2]
[357423606,1744063847041,-574.0,0.00037417,2]
[357423608,1744063847051,-1285.0,0.00037417,2]
[357423610,1744063847061,-2043.0,0.00037417,2]
[357423612,1744063847070,-1325.0,0.00037417,2]
[357423614,1744063847080,-790.0,0.00037417,2]
[357423616,1744063847089,-908.0,0.00037417,2]
[357423618,1744063847099,-1435.0,0.00037417,2]
[357423619,1744063847108,-1277.0,0.00037417,2]
[357423621,1744063847117,-544.0,0.00037417,2]
[357423623,1744063847127,-4140.0,0.00037417,2]
[357423625,1744063847136,-4188.63518024,0.0003759,2]
[357423627,1744063847146,-151.0,0.00037621,7]
[357423629,1744063847155,-167.76667554,0.000378,2]
[357423631,1744063847165,-852.0,0.00038062,2]
[357423633,1744063847174,-3956.0,0.00038062,2]
[357423635,1744063847184,-151.0,0.00038062,2]
[357423637,1744063847194,-303.8566541,0.00038149,11]
[357423639,1744063847203,-164.93227788,0.0003817,2]
[357423641,1744063847217,-341.82,0.00038443,2]
[357423643,1744063847227,-150.0,0.00038588,2]
[357423645,1744063847236,-2000.0,0.00038602,4]
[357423647,1744063847246,-750.0,0.00039,2]
[357423649,1744063847257,-150.0,0.00039197,2]
[357423651,1744063847267,-565.92019696,0.00039197,2]
[357423653,1744063847276,-150.0,0.00039197,2]
[357423655,1744063847287,-808.74756108,0.00039197,2]
[357423657,1744063847296,-150.0,0.00039197,2]
[357423659,1744063847306,-150.0,0.00039197,2]
[357423661,1744063847315,-150.0,0.00039197,2]
[357423663,1744063847325,-2339.6898906,0.00039197,2]
[357423665,1744063847334,-5664.40993448,0.00039197,2]
[357423667,1744063847344,-4454.26859748,0.00039197,2]
[357423669,1744063847353,-2569.75140714,0.00039253,2]
[357423671,1744063847363,-1000.0,0.0003944,2]
[357423673,1744063847373,-2126.06496276,0.0003949,2]
[357423674,1744063847383,-209.38148751,0.0003962,2]
[357423675,1744063847392,-185.9073758,0.00039726,15]
[357423676,1744063847401,-150.0,0.00039845,2]
[357423677,1744063847411,-150.0,0.00039958,2]
[357423678,1744063847421,-8924.31623985,0.00039999,7]
[357423679,1744063847430,-24076.15616905,0.0004,5]
[357423680,1744063847439,-1000.32610686,0.0004,7]
[357423681,1744063847450,-723.38061855,0.0004,5]
[357423682,1744063847467,-588.90936084,0.0004,2]
[357423683,1744063847478,-1941.53269806,0.0004,7]
[357423684,1744063847494,-8604.46423287,0.0004,2]
[357423685,1744063847509,-378.36679028,0.0004,2]
[357423686,1744063847519,-5060.20959684,0.0004,2]
[357423687,1744063847529,-212.06202181,0.0004,2]
[357423688,1744063847538,-155.94990164,0.0004,15]
[357423689,1744063847548,-150.0,0.0004,2]
[357423690,1744063847558,-151.0,0.0004,14]
[357423691,1744063847568,-151.0,0.0004,14]
[357423693,1744063847577,-151.0,0.0004,14]
[357423695,1744063847589,-151.0,0.0004,14]
[357423697,1744063847599,-156.091119,0.0004,14]
[357423699,1744063847610,-209.492686,0.0004,14]
[357423701,1744063847619,-445.127338,0.0004,14]
[357423703,1744063847630,-445.127338,0.0004,14]
[357423704,1744063847645,-151.0,0.0004,14]
[357423706,1744063847655,-151.0,0.0004,14]
[357423708,1744063847666,-155.666449,0.0004,14]
[357423710,1744063847676,-151.0,0.0004,14]
[357423712,1744063847686,-163.821533,0.0004,14]
[357423714,1744063847695,-151.0,0.0004,14]
[357423715,1744063847704,-151.0,0.0004,14]
[357423717,1744063847713,-447.481459,0.0004,14]
[357423719,1744063847723,-447.481459,0.0004,14]
[357423721,1744063847733,-151.0,0.0004,14]
[357423723,1744063847742,-151.0,0.0004,14]
[357423725,1744063847752,-151.0,0.0004,14]
[357423727,1744063847762,-151.0,0.0004,14]
[357423729,1744063847771,-474.194282,0.0004,14]
[357423731,1744063847780,-474.194282,0.0004,14]
[357423733,1744063847791,-151.0,0.0004,14]
[357423735,1744063847800,-151.0,0.0004,14]
[357423737,1744063847809,-188.000229,0.0004,14]
[357423739,1744063847818,-151.0,0.0004,14]
[357423741,1744063847827,-151.0,0.0004,14]
[357423743,1744063847836,-151.0,0.0004,14]
[357423745,1744063847846,-151.0,0.0004,14]
[357423747,1744063847855,-151.0,0.0004,14]
[357423749,1744063847864,-151.0,0.0004,14]
[357423750,1744063847875,-151.0,0.0004,14]
[357423752,1744063847885,-151.0,0.0004,14]
[357423754,1744063847894,-151.0,0.0004,14]
[357423756,1744063847904,-440.549335,0.0004,14]
[357423758,1744063847913,-440.549335,0.0004,14]
[357423760,1744063847924,-866.90011,0.0004,14]
[357423762,1744063847933,-866.90011,0.0004,14]
[357423764,1744063847943,-502.211511,0.0004,14]
[357423766,1744063847952,-502.211511,0.0004,14]
[357423768,1744063847961,-151.0,0.0004,14]
[357423770,1744063847971,-151.0,0.0004,14]
[357423772,1744063847980,-151.0,0.0004,14]
[357423774,1744063847989,-151.0,0.0004,14]
[357423776,1744063847999,-151.0,0.0004,14]
[357423778,1744063848009,-6536.999462,0.0004,14]
[357423780,1744063848019,-151.0,0.0004,14]
[357423782,1744063848029,-6536.999462,0.0004,14]
[357423784,1744063848039,-151.0,0.0004,14]
[357423787,1744063848048,-151.0,0.0004,14]
[357423788,1744063848058,-151.0,0.0004,14]
[357423790,1744063848067,-1748.001158,0.0004,14]
[357423792,1744063848076,-1748.001158,0.0004,14]
[357423794,1744063848086,-762.680663,0.0004,14]
[357423796,1744063848097,-762.680663,0.0004,14]
[357423798,1744063848106,-151.0,0.0004,14]
[357423800,1744063848117,-230.561199,0.0004,14]
[357423802,1744063848126,-230.561199,0.0004,14]
[357423804,1744063848135,-1393.595376,0.0004,14]
[357423806,1744063848145,-1393.595376,0.0004,14]
[357423808,1744063848154,-151.0,0.0004,14]
[357423810,1744063848164,-403.159347,0.0004,14]
[357423812,1744063848173,-795.151633,0.0004,14]
[357423814,1744063848183,-403.159347,0.0004,14]
[357423816,1744063848194,-795.151633,0.0004,14]
[357423818,1744063848204,-151.0,0.0004,14]
[357423820,1744063848219,-151.0,0.0004,14]
[357423822,1744063848230,-178.907013,0.0004,14]
[357423824,1744063848239,-178.907013,0.0004,14]
[357423826,1744063848248,-151.0,0.0004,14]
[357423828,1744063848258,-153.877569,0.0004,14]
[357423830,1744063848267,-259.898392,0.0004,14]
[357423832,1744063848277,-151.0,0.0004,14]
[357423834,1744063848286,-259.898392,0.0004,14]
[357423836,1744063848295,-151.0,0.0004,14]
[357423839,1744063848318,-151.0,0.0004001,14]
[357423842,1744063848329,-151.0,0.0004001,14]
[357423844,1744063848340,-151.0,0.0004001,14]
[357423846,1744063848349,-151.0,0.0004001,14]
[357423848,1744063848360,-210.871432,0.0004001,14]
[357423850,1744063848370,-210.871432,0.0004001,14]
[357423852,1744063848380,-6433.3601653,0.00040011,2]
[357423854,1744063848390,-33517.93572568,0.00040011,2]
[357423996,1744063849828,-340.43344067,0.00027079,2]
[357423998,1744063849837,-31479.30959334,0.00040011,2]
[357424007,1744063849921,-753.37374,0.00040011,2]
[357424014,1744063849973,-1119.0,0.00032391,2]
[357424016,1744063849983,-1577.39804662,0.00040011,2]
[357424018,1744063849995,-7420.53629979,0.00040011,2]
[357429839,1744064033080,1567.16,0.00038696,120]
[357429840,1744064088507,250.0,0.00019,2]
[357429841,1744064310646,2506.358,0.0003315,34]
[357429842,1744064310767,175.61285955,0.0003315,34]
[357429843,1744064608470,200.0,0.0003728,120]
[357429844,1744064695033,200.0,0.00042819,30]
[357429845,1744064789814,485.44419513,0.00015,2]
[357429846,1744064816392,-60471.15675885,0.0002,2]
[357429847,1744064827112,218.74417505,0.000153,2]
[357429848,1744064830587,374.56592644,0.00015,2]
[357429851,1744064880865,262.33850318,0.00015,2]
[357429852,1744064880891,3724.5377338,0.00015,2]
[357429853,1744064880918,3724.5377338,0.00015,2]
[357429854,1744064880944,3724.5377338,0.00015,2]
[357429855,1744064880970,3724.5377338,0.00015,2]
[357429856,1744064880996,3724.5377338,0.00015,2]
[357429857,1744064881021,3724.5377338,0.00015,2]
[357429858,1744064881047,3724.5377338,0.00015,2]
[357429859,1744064881073,3724.5377338,0.00015,2]
[357429860,1744064881098,3724.5377338,0.00015,2]
[357429861,1744064881669,-287.20678964,0.00015,2]
[357429862,1744064918033,-167.2,0.000149,2]
[357429863,1744064918704,2714.70887258,0.00042819,90]
[357429864,1744064938935,-157.91,0.000149,2]
[357429865,1744064946120,-1330.55028273,0.000149,2]
[357429866,1744064946919,-256.8,0.000149,2]
[357429867,1744064951674,-163.0,0.000149,2]
[357429868,1744065003423,-1045.81227433,0.000149,2]
[357429869,1744065003454,-1735.92441208,0.000149,2]
[357429870,1744065003485,-168.0,0.00014959,2]
[357429873,1744065003814,-256.0,0.00014959,2]
[357429874,1744065003846,-514.90291555,0.00014973,2]
[357429875,1744065003877,-625.31369011,0.00014973,2]
[357429876,1744065003908,-150.0,0.00014999,2]
[357429877,1744065003941,-4101.95909682,0.00015,2]
[357429878,1744065003990,-8482.93579944,0.00015,2]
[357429879,1744065004130,-150.0,0.00014973,2]
[357429880,1744065006781,-250.0,0.00014973,2]
[357429881,1744065013931,-150.0,0.00014973,2]
[357429885,1744065031903,-30.24595573,0.00014973,2]
[357429886,1744065031934,-129.54937858,0.00014973,2]